[Event "Bremer Silvester Open 2018"]
[Site "Bremen"]
[Date "2018.12.29"]
[Round "5"]
[White "Hoeffer, David"]
[Black "Lammers, Markus"]
[Result "1-0"]
[ECO "D29"]
[WhiteElo "2259"]
[BlackElo "2312"]
[Annotator "NA"]
[PlyCount "79"]
[EventDate "2018.12.27"]
[EventType "swiss"]
[EventCountry "GER"]
[SourceTitle "playchess.com"]
[Source "ChessBase"]
[SourceQuality "1"]
[TimeControl "40/5400+30:1800+30"]

1. d4 {[%emt 0:00:00]} d5 {[%emt 0:03:32]} 2. Nf3 {[%emt 0:00:00]} Nf6 {[%emt 0:00:23]} 3. c4 {[%emt 0:00:00]} dxc4 {[%emt 0:01:03]} 4. e3 {[%emt 0:00:04]} e6 {[%emt 0:00:26]} 5. Bxc4 {[%emt 0:00:06]} c5 {[%emt 0:00:08]} 6. O-O {[%emt 0:00:06]} a6 {[%emt 0:00:03]} 7. Bb3 {[%emt 0:00:06]} b5 {[%emt 0:00:34]} 8. Nc3 {[%emt 0:01:45]} Bb7 {[%emt 0:00:06]} 9. Qe2 {[%emt 0:00:38]} Nbd7 {[%emt 0:05:02]} 10. Rd1 {[%emt 0:00:31]} Qb8 {[%emt 0:13:57]} 11. d5 {[%emt 0:14:37]} exd5 {[%emt 0:00:44]} 12. Nxd5 {[%emt 0:00:30]} Nxd5 {[%emt 0:01:18]} 13. Bxd5 {[%emt 0:00:06]} Bxd5 {[%emt 0:00:13]} 14. Rxd5 {[%emt 0:00:05]} Be7 {[%emt 0:00:39] D29: Queen's Gambit Accepted: Classical main line: 7 Qe2 with early ...Nbd7} 15. e4 {[%emt 0:04:55]} Nb6 {[%emt 0:01:21]} (15... Qb7 16. Bg5 f6 17. Bf4 O-O 18. Rad1 Nb6 19. R5d2 Rad8 20. Rxd8 Rxd8 21. Rxd8+ Bxd8 22. e5 Qc6 23. Kf1 {½-½ (23) Postny,E (2618)-Nielsen,P (2681) Khanty-Mansiysk 2011}) 16. Re5 {[%emt 0:08:40]} Qb7 {[%emt 0:03:14]} 17. Be3 $146 {[%emt 0:10:47]} ({Predecessor:} 17. Bf4 O-O 18. Rh5 Rfe8 19. Re1 Rad8 20. Bg5 Bxg5 21. Rxg5 Nd5 22. Qc2 {0-1 (33) Cooper,L (2317)-Wells,P (2491) Bunratty 2013}) 17... f6 {[%emt 0:08:16]} 18. Rh5 {[%emt 0:02:28]} Qxe4 {[%emt 0:01:22]} 19. Rh4 $11 {[%emt 0:01:06]} Qe6 {[%emt 0:01:26]} 20. Qc2 {[%emt 0:01:31]} Kf7 {[%emt 0:11:05]} 21. Re4 {[%emt 0:10:19]} Qd7 {[%emt 0:06:16]} 22. Bxc5 {[%emt 0:07:38]} Bxc5 {[%emt 0:01:01]} 23. Qxc5 {[%emt 0:00:05]} Rhb8 {[%emt 0:06:25]} 24. Rae1 {[%emt 0:02:22]} Kg8 {[%emt 0:01:09]} 25. Re7 {[%emt 0:00:38]} Qd3 {[%emt 0:06:02]} 26. Qc7 {[%emt 0:11:22]} Qg6 {[%emt 0:00:56]} 27. Nh4 {[%emt 0:00:07]} Qg5 {[%emt 0:03:21]} 28. Nf3 {[%emt 0:03:11]} Qg6 {[%emt 0:02:32]} 29. Qc6 {[%emt 0:01:03]} Qf5 {[%emt 0:07:11]} 30. Nh4 {[%emt 0:07:19]} Qg4 {[%emt 0:02:23]} 31. h3 {[%emt 0:00:41]} Qc4 {[%emt 0:01:03]} 32. Rxg7+ {[%emt 0:05:14]} Kxg7 {[%emt 0:00:01]} 33. Re7+ {[%emt 0:00:06]} Qf7 {[%emt 0:00:52]} 34. Nf5+ {[%emt 0:00:30]} Kf8 {[%emt 0:01:12]} 35. Rxf7+ {[%emt 0:00:13]} Kxf7 {[%emt 0:00:02]} 36. Qc7+ {[%emt 0:00:42]} Ke6 {[%emt 0:00:15]} 37. g4 {[%emt 0:00:21]} Nc8 {[%emt 0:01:38]} 38. Qc6+ {[%emt 0:01:01]} Ke5 {[%emt 0:00:14]} 39. Kg2 {[%emt 0:00:21]} Kf4 {[%emt 0:00:51]} 40. Qxf6 {[%emt 0:00:58]} 1-0

[Event "Bremer Silvester Open 2018"]
[Site "Bremen"]
[Date "2018.12.29"]
[Round "5"]
[White "Dettmann, Steffen, Dr."]
[Black "Ditmas, Hugh"]
[Result "1-0"]
[ECO "A05"]
[WhiteElo "2201"]
[BlackElo "1978"]
[Annotator "NA"]
[PlyCount "85"]
[EventDate "2018.12.27"]
[EventType "swiss"]
[EventCountry "GER"]
[SourceTitle "playchess.com"]
[Source "ChessBase"]
[SourceQuality "1"]
[TimeControl "40/5400+30:1800+30"]

1. e4 {[%emt 0:00:00]} c5 {[%emt 0:00:00]} 2. Nf3 {[%emt 0:00:00]} Nc6 {[%emt 0:00:00]} 3. d3 {[%emt 0:02:26]} g6 {[%emt 0:00:04]} 4. g3 {[%emt 1:29:34]} Bg7 {[%emt 0:00:33]} 5. Bg2 {[%emt 0:00:00]} d6 {[%emt 0:00:44]} 6. O-O {[%emt 0:00:00]} Nf6 {[%emt 0:01:09]} 7. c3 {[%emt 0:00:00]} O-O {[%emt 0:00:32]} 8. Nbd2 {[%emt 0:00:00]} Rb8 {[%emt 0:01:22]} 9. d4 {[%emt 0:00:00]} cxd4 {[%emt 0:10:12]} 10. Nxd4 {[%emt 0:00:00]} Nxd4 {[%emt 0:20:04]} 11. cxd4 {[%emt 0:00:00]} b5 {[%emt 0:04:12]} 12. Nb3 {[%emt 0:00:00]} Nd7 {[%emt 0:14:20]} 13. d5 {[%emt 0:00:00]} Bb7 {[%emt 0:06:39]} 14. Nd4 {[%emt 0:00:00]} a6 {[%emt 0:04:52]} 15. Be3 {[%emt 0:00:00]} Rc8 {[%emt 0:03:14]} 16. Qd2 {[%emt 0:00:00]} Ne5 {[%emt 0:02:52]} 17. b3 {[%emt 0:00:00]} Ng4 {[%emt 0:00:35]} 18. Bf4 {[%emt 0:00:00]} Qb6 {[%emt 0:03:49]} 19. Rad1 {[%emt 0:00:00]} Bxd4 {[%emt 0:03:03]} 20. Qxd4 {[%emt 0:00:00]} Qxd4 {[%emt 0:01:17]} 21. Rxd4 {[%emt 0:00:00]} Rc2 {[%emt 0:01:30]} 22. Rd2 {[%emt 0:00:00]} Rxd2 {[%emt 0:04:48]} 23. Bxd2 {[%emt 0:00:00]} Rc8 {[%emt 0:03:17]} 24. Rc1 {[%emt 0:00:00]} Ne5 {[%emt 0:01:06]} 25. Rxc8+ {[%emt 0:00:00]} Bxc8 {[%emt 0:00:02]} 26. f4 {[%emt 0:00:00]} Nd7 {[%emt 0:02:41]} 27. Kf2 {[%emt 0:00:00]} Kf8 {[%emt 0:00:16]} 28. Bc3 {[%emt 0:00:00]} Nc5 {[%emt 0:02:29]} 29. Ke3 {[%emt 0:00:00]} e6 {[%emt 0:00:59]} 30. e5 {[%emt 0:04:10]} Nb7 {[%emt 0:01:19]} 31. dxe6 {[%emt 0:02:03]} fxe6 {[%emt 0:00:34]} 32. Bb4 {[%emt 0:00:30]} Ke7 {[%emt 0:00:31]} 33. Kd4 {[%emt 0:01:39]} Kd7 {[%emt 0:01:53]} 34. exd6 {[%emt 0:00:51]} Nxd6 {[%emt 0:01:23]} 35. Ke5 {[%emt 0:00:23]} Nf5 {[%emt 0:01:49]} 36. Bc5 {[%emt 0:00:14]} Ke8 {[%emt 0:00:51]} 37. Kf6 {[%emt 0:01:50]} a5 {[%emt 0:00:38]} 38. g4 {[%emt 0:00:27]} Nh6 {[%emt 0:01:20]} 39. Bc6+ {[%emt 0:01:56]} Bd7 {[%emt 0:00:12]} 40. Bxd7+ {[%emt 0:00:13]} Kxd7 {[%emt 0:00:01]} 41. h3 {[%emt 0:30:27]} Ng8+ {[%emt 0:32:19]} 42. Kf7 {[%emt 0:00:36]} Kc6 {[%emt 0:00:30]} 43. Bf8 {[%emt 0:00:19]} 1-0

[Event "Bremer Silvester Open 2018"]
[Site "Bremen"]
[Date "2018.12.29"]
[Round "5"]
[White "Steffens, Olaf"]
[Black "Pfreundt, Jakob"]
[Result "0-1"]
[ECO "B06"]
[WhiteElo "2185"]
[BlackElo "2373"]
[Annotator "NA"]
[PlyCount "64"]
[EventDate "2018.12.27"]
[EventType "swiss"]
[EventCountry "GER"]
[SourceTitle "playchess.com"]
[Source "ChessBase"]
[SourceQuality "1"]
[TimeControl "40/5400+30:1800+30"]

1. f4 {[%emt 0:05:24]} g6 {[%emt 0:00:55]} 2. Nf3 {[%emt 0:01:04]} Bg7 {[%emt 0:00:49]} 3. e4 {[%emt 0:04:35]} d5 {[%emt 0:05:13]} 4. Nc3 {[%emt 0:07:17]} dxe4 {[%emt 0:01:30]} 5. Nxe4 {[%emt 0:01:29]} Nf6 {[%emt 0:01:19]} 6. Nxf6+ {[%emt 0:11:53]} Bxf6 {[%emt 0:01:13]} 7. Bc4 {[%emt 0:01:12]} c5 {[%emt 0:05:48]} 8. O-O {[%emt 0:09:23]} Nc6 {[%emt 0:02:01]} 9. d3 {[%emt 0:17:08]} Na5 {[%emt 0:07:16]} 10. Bb5+ {[%emt 0:03:26]} Bd7 {[%emt 0:05:35]} 11. Bxd7+ {[%emt 0:03:28]} Qxd7 {[%emt 0:04:24]} 12. Ne5 {[%emt 0:00:15]} Qd5 {[%emt 0:07:11]} 13. Kh1 {[%emt 0:08:04]} Nc6 {[%emt 0:01:08]} 14. Nxc6 {[%emt 0:04:12]} Qxc6 {[%emt 0:00:16]} 15. Rb1 $15 {[%emt 0:01:42]} Rc8 {[%emt 0:09:20]} 16. f5 {[%emt 0:03:50]} Rg8 {[%emt 0:07:52]} 17. Qe2 {[%emt 0:03:18]} h5 {[%emt 0:04:09]} 18. b4 {[%emt 0:05:05]} c4 {[%emt 0:05:40]} 19. b5 {[%emt 0:00:14]} cxd3 {[%emt 0:02:33]} 20. cxd3 {[%emt 0:00:54]} Qc2 {[%emt 0:04:25]} 21. Bd2 {[%emt 0:00:40]} Rd8 {[%emt 0:00:26]} 22. Qe1 {[%emt 0:04:43]} gxf5 {[%emt 0:02:55]} 23. Rc1 {[%emt 0:00:23]} Qxd3 {[%emt 0:00:18]} 24. Bb4 {[%emt 0:00:24]} Qe4 {[%emt 0:01:44]} 25. Qxe4 {[%emt 0:00:11]} fxe4 {[%emt 0:00:06]} 26. Rc7 {[%emt 0:00:24]} e3 {[%emt 0:05:04]} 27. Kg1 {[%emt 0:01:01]} Rg4 {[%emt 0:01:30]} 28. Bc5 {[%emt 0:01:34]} e2 {[%emt 0:03:07]} 29. Re1 {[%emt 0:00:22]} Rc4 {[%emt 0:02:23]} 30. Kf2 {[%emt 0:00:51]} Rxc5 {[%emt 0:00:14]} 31. Rxc5 {[%emt 0:00:13]} Bd4+ {[%emt 0:00:06]} 32. Kxe2 {[%emt 0:00:11]} Bxc5 {[%emt 0:00:06]} 0-1

[Event "Bremer Silvester Open 2018"]
[Site "Bremen"]
[Date "2018.12.29"]
[Round "5"]
[White "Ngo, Minh Duc"]
[Black "Wachinger, Nikolas"]
[Result "0-1"]
[ECO "A10"]
[WhiteElo "2155"]
[BlackElo "2306"]
[Annotator "NA"]
[PlyCount "76"]
[EventDate "2018.12.27"]
[EventType "swiss"]
[EventCountry "GER"]
[SourceTitle "playchess.com"]
[Source "ChessBase"]
[SourceQuality "1"]
[TimeControl "40/5400+30:1800+30"]

1. c4 {[%emt 0:00:00]} b6 {[%emt 0:00:00]} 2. Nc3 {[%emt 0:00:00]} Bb7 {[%emt 0:00:07]} 3. e4 {[%emt 0:00:08]} e5 {[%emt 0:00:09]} 4. Nge2 {[%emt 0:01:15]} Nc6 {[%emt 0:04:19]} 5. d3 {[%emt 0:00:15]} Bc5 {[%emt 0:00:30]} 6. Be3 {[%emt 0:01:55]} d6 {[%emt 0:01:22]} 7. Qd2 {[%emt 0:02:35]} Nge7 {[%emt 0:01:58]} 8. g3 {[%emt 0:01:22]} O-O {[%emt 0:05:21]} 9. Bg2 {[%emt 0:03:02]} f5 {[%emt 0:01:53]} 10. O-O-O {[%emt 0:01:36]} Nd4 {[%emt 0:09:28]} 11. Bxd4 {[%emt 0:10:39]} exd4 {[%emt 0:08:37]} 12. Nd5 {[%emt 0:03:34]} fxe4 {[%emt 0:00:35]} 13. Bxe4 {[%emt 0:00:53]} c6 {[%emt 0:32:45]} 14. Nxe7+ {[%emt 0:13:48]} Qxe7 {[%emt 0:00:02]} 15. Nf4 {[%emt 0:00:20]} a5 {[%emt 0:00:49]} 16. Qe2 {[%emt 0:02:06]} Qf7 {[%emt 0:02:31]} 17. Rdf1 {[%emt 0:15:19]} Rae8 {[%emt 0:05:31]} 18. Qf3 {[%emt 0:06:00]} g5 {[%emt 0:09:42]} 19. Qg4 {[%emt 0:00:18]} Re5 {[%emt 0:00:20]} 20. Nh5 {[%emt 0:06:30]} Bc8 {[%emt 0:01:49]} 21. Qd1 {[%emt 0:00:05]} Rxe4 {[%emt 0:02:02]} 22. dxe4 {[%emt 0:00:09]} Qxc4+ {[%emt 0:00:03]} 23. Kb1 {[%emt 0:02:00]} Bh3 {[%emt 0:00:10]} 24. f4 {[%emt 0:18:19]} Bxf1 {[%emt 0:01:12]} 25. Rxf1 {[%emt 0:00:04]} d3 {[%emt 0:03:05]} 26. Rf3 {[%emt 0:02:01]} d2 {[%emt 0:00:06]} 27. Qxd2 {[%emt 0:01:12]} Qxe4+ {[%emt 0:00:02]} 28. Qd3 {[%emt 0:00:36]} Qe1+ {[%emt 0:00:12]} 29. Kc2 {[%emt 0:00:08]} g4 {[%emt 0:00:14]} 30. Rf1 {[%emt 0:06:12]} Qe8 {[%emt 0:00:06]} 31. f5 {[%emt 0:01:30]} Qxh5 {[%emt 0:00:07]} 32. Rf4 {[%emt 0:00:06]} Qxh2+ {[%emt 0:02:28]} 33. Kb3 {[%emt 0:00:24]} Qh5 {[%emt 0:00:09]} 34. Qe4 {[%emt 0:00:37]} Qf7+ {[%emt 0:00:28]} 35. Kc2 {[%emt 0:00:25]} d5 {[%emt 0:00:42]} 36. Qe5 {[%emt 0:00:16]} Qf6 {[%emt 0:00:12]} 37. Rxg4+ {[%emt 0:01:37]} Kh8 {[%emt 0:00:02]} 38. Rg8+ {[%emt 0:01:44]} Kxg8 {[%emt 0:00:16]} 0-1

[Event "Bremer Silvester Open 2018"]
[Site "Bremen"]
[Date "2018.12.29"]
[Round "5"]
[White "Colbow, Collin"]
[Black "Villwock, Martin"]
[Result "1-0"]
[ECO "B32"]
[WhiteElo "2111"]
[BlackElo "2208"]
[Annotator "NA"]
[PlyCount "95"]
[EventDate "2018.12.27"]
[EventType "swiss"]
[EventCountry "GER"]
[SourceTitle "playchess.com"]
[Source "ChessBase"]
[SourceQuality "1"]
[TimeControl "40/5400+30:1800+30"]

1. e4 {[%emt 0:00:00]} c5 {[%emt 0:00:00]} 2. Nf3 {[%emt 0:00:00]} Nc6 {[%emt 0:00:00]} 3. d4 {[%emt 0:00:00]} cxd4 {[%emt 0:00:00]} 4. Nxd4 {[%emt 0:00:00]} e5 {[%emt 0:00:04]} 5. Nb5 {[%emt 0:00:00]} d6 {[%emt 0:00:15]} 6. N1c3 {[%emt 0:00:13]} a6 {[%emt 0:00:39]} 7. Na3 {[%emt 0:00:04]} Be7 {[%emt 0:00:37]} 8. Be3 {[%emt 0:05:02]} Nf6 {[%emt 0:02:14]} 9. Nc4 {[%emt 0:01:36]} b5 {[%emt 0:01:24]} 10. Nb6 {[%emt 0:00:26]} Rb8 {[%emt 0:00:17]} 11. Nbd5 {[%emt 0:00:31]} Ng4 {[%emt 0:07:09]} 12. Be2 {[%emt 0:05:03]} Nxe3 {[%emt 0:02:26]} 13. Nxe3 {[%emt 0:00:06]} Bg5 {[%emt 0:01:28]} 14. Ncd5 {[%emt 0:03:48]} O-O {[%emt 0:00:52]} 15. O-O {[%emt 0:01:04]} g6 {[%emt 0:03:33]} 16. Kh1 {[%emt 0:10:22]} Kh8 {[%emt 0:03:25]} 17. c3 {[%emt 0:04:38]} Bh6 {[%emt 0:03:33]} 18. Qc2 {[%emt 0:07:03]} f5 {[%emt 0:04:42]} 19. exf5 {[%emt 0:02:17]} gxf5 {[%emt 0:00:20]} 20. f4 {[%emt 0:02:20]} Qe8 {[%emt 0:05:07]} 21. fxe5 {[%emt 0:05:49]} Qxe5 {[%emt 0:01:46]} 22. Qd3 {[%emt 0:04:03]} f4 {[%emt 0:26:44]} 23. Ng4 {[%emt 0:03:40]} Bxg4 {[%emt 0:00:07]} 24. Bxg4 {[%emt 0:00:20]} Qg5 {[%emt 0:00:30]} 25. Qh3 {[%emt 0:07:16]} Ne5 {[%emt 0:01:46]} 26. Bf3 {[%emt 0:01:32]} Rf7 {[%emt 0:11:50]} 27. a4 {[%emt 0:02:54]} b4 {[%emt 0:04:28]} 28. cxb4 {[%emt 0:02:57]} Nc4 {[%emt 0:03:42]} 29. Rac1 {[%emt 0:02:32]} Ne3 {[%emt 0:02:27]} 30. Qe6 {[%emt 0:06:17]} Nxf1 {[%emt 0:06:05]} 31. Qxf7 {[%emt 0:00:35]} Ng3+ {[%emt 0:01:17]} 32. hxg3 {[%emt 0:11:21]} fxg3 {[%emt 0:00:35]} 33. Rc4 {[%emt 0:01:44]} Rf8 {[%emt 0:01:13]} 34. Qe7 {[%emt 0:01:00]} Qh5+ {[%emt 0:01:28]} 35. Rh4 {[%emt 0:02:26]} Rxf3 {[%emt 0:00:42]} 36. Kg1 {[%emt 0:00:50]} Qxd5 {[%emt 0:01:58]} 37. gxf3 {[%emt 0:02:36]} Qxf3 {[%emt 0:00:28]} 38. Qd8+ {[%emt 0:00:32]} Bf8 {[%emt 0:01:26]} 39. Qb6 {[%emt 0:00:38]} Be7 {[%emt 0:01:41]} 40. Rh3 {[%emt 0:05:29]} Bg5 {[%emt 0:00:59]} 41. Qb8+ {[%emt 0:03:22]} Kg7 {[%emt 0:00:40]} 42. Qc7+ {[%emt 0:00:41]} Kg8 {[%emt 0:07:25]} 43. Qxh7+ {[%emt 0:00:59]} Kf8 {[%emt 0:00:06]} 44. Qh8+ {[%emt 0:00:10]} Ke7 {[%emt 0:00:18]} 45. Rh7+ {[%emt 0:00:11]} Ke6 {[%emt 0:00:16]} 46. Qe8+ {[%emt 0:00:10]} Kf5 {[%emt 0:00:40]} 47. Rf7+ {[%emt 0:00:16]} Bf6 {[%emt 0:00:09]} 48. Rxf6+ {[%emt 0:00:09]} 1-0

[Event "Bremer Silvester Open 2018"]
[Site "Bremen"]
[Date "2018.12.29"]
[Round "6"]
[White "Pfreundt, Jakob"]
[Black "Hoeffer, David"]
[Result "1-0"]
[ECO "E73"]
[WhiteElo "2373"]
[BlackElo "2259"]
[Annotator "NA"]
[PlyCount "43"]
[EventDate "2018.12.27"]
[EventType "swiss"]
[EventCountry "GER"]
[SourceTitle "playchess.com"]
[Source "ChessBase"]
[SourceQuality "1"]
[TimeControl "40/5400+30:1800+30"]

1. d4 {[%emt 0:00:00]} Nf6 {[%emt 0:00:00]} 2. c4 {[%emt 0:00:00]} g6 {[%emt 0:00:00]} 3. Nc3 {[%emt 0:00:20]} Bg7 {[%emt 0:00:00]} 4. e4 {[%emt 0:00:27]} d6 {[%emt 0:00:00]} 5. Be2 {[%emt 0:00:26]} O-O {[%emt 0:00:04]} 6. Be3 {[%emt 0:00:49]} e5 {[%emt 0:03:03]} 7. d5 {[%emt 0:00:31]} a5 {[%emt 0:02:58]} 8. g4 {[%emt 0:01:21]} Nfd7 {[%emt 0:00:23]} 9. Nf3 {[%emt 0:04:15]} Na6 {[%emt 0:02:27]} 10. Rg1 {[%emt 0:07:11]} Kh8 {[%emt 0:04:53]} 11. Qd2 {[%emt 0:09:34]} f5 {[%emt 0:02:43]} 12. gxf5 {[%emt 0:00:35]} gxf5 {[%emt 0:00:05]} 13. exf5 {[%emt 0:05:53]} Ndc5 {[%emt 0:03:54]} 14. Bg5 {[%emt 0:08:10]} Bf6 {[%emt 0:16:15]} 15. Nh4 {[%emt 0:06:24]} Nb4 {[%emt 0:04:26]} 16. Ng6+ {[%emt 0:06:47]} hxg6 {[%emt 0:10:38]} 17. Bxf6+ {[%emt 0:00:18]} Rxf6 {[%emt 0:00:07]} 18. Qh6+ {[%emt 0:00:06]} Kg8 {[%emt 0:00:02]} 19. Rxg6+ {[%emt 0:01:10]} Rxg6 {[%emt 0:00:05]} 20. Qxg6+ {[%emt 0:00:08]} Kh8 {[%emt 0:00:23]} 21. Qh6+ {[%emt 0:00:18]} Kg8 {[%emt 0:00:03]} 22. Kd2 {[%emt 0:01:38]} 1-0

[Event "Bremer Silvester Open 2018"]
[Site "Bremen"]
[Date "2018.12.29"]
[Round "6"]
[White "Lammers, Markus"]
[Black "Grigorian, Spartak"]
[Result "0-1"]
[ECO "E14"]
[WhiteElo "2312"]
[BlackElo "2346"]
[Annotator "NA"]
[PlyCount "44"]
[EventDate "2018.12.27"]
[EventType "swiss"]
[EventCountry "GER"]
[SourceTitle "playchess.com"]
[Source "ChessBase"]
[SourceQuality "1"]
[TimeControl "40/5400+30:1800+30"]

1. Nf3 {[%emt 0:00:00]} d5 {[%emt 0:00:00]} 2. d4 {[%emt 0:00:00]} Nf6 {[%emt 0:00:38]} 3. c4 {[%emt 0:00:02]} e6 {[%emt 0:00:02]} 4. e3 {[%emt 0:00:10]} b6 {[%emt 0:00:53]} 5. Nc3 {[%emt 0:00:07]} Bd6 {[%emt 0:00:08]} 6. Bd3 {[%emt 0:01:00]} Bb7 {[%emt 0:00:37]} 7. O-O {[%emt 0:01:25]} O-O {[%emt 0:02:37]} 8. cxd5 {[%emt 0:04:32]} exd5 {[%emt 0:00:37]} 9. Ne5 {[%emt 0:00:07]} c5 {[%emt 0:08:07]} 10. f4 {[%emt 0:02:10]} Nc6 {[%emt 0:01:29]} 11. Kh1 {[%emt 0:08:57]} cxd4 {[%emt 0:01:32]} 12. exd4 {[%emt 0:03:54]} Nxd4 {[%emt 0:01:00]} 13. b3 {[%emt 0:01:57]} Ne6 {[%emt 0:19:37]} 14. Nb5 {[%emt 0:07:39]} Bb8 {[%emt 0:05:20]} 15. Bb2 {[%emt 0:09:47]} d4 {[%emt 0:08:52]} 16. Nxd4 {[%emt 0:10:32]} Nxf4 {[%emt 0:05:04]} 17. Rxf4 {[%emt 0:11:52]} Bxe5 {[%emt 0:00:40]} 18. Nc6 {[%emt 0:01:48]} Bxc6 {[%emt 0:01:54]} 19. Bxe5 {[%emt 0:00:04]} Qd5 {[%emt 0:03:49]} 20. Qe2 {[%emt 0:00:26]} Rae8 {[%emt 0:04:18]} 21. Rf5 {[%emt 0:02:41]} Nd7 {[%emt 0:00:41]} 22. Rh5 {[%emt 0:06:15]} g6 {[%emt 0:01:10]} 0-1

[Event "Bremer Silvester Open 2018"]
[Site "Bremen"]
[Date "2018.12.29"]
[Round "6"]
[White "Wachinger, Nikolas"]
[Black "Colbow, Collin"]
[Result "1-0"]
[ECO "C64"]
[WhiteElo "2306"]
[BlackElo "2111"]
[Annotator "NA"]
[PlyCount "63"]
[EventDate "2018.12.27"]
[EventType "swiss"]
[EventCountry "GER"]
[SourceTitle "playchess.com"]
[Source "ChessBase"]
[SourceQuality "1"]
[TimeControl "40/5400+30:1800+30"]

1. e4 {[%emt 0:00:00]} e5 {[%emt 0:00:00]} 2. Nf3 {[%emt 0:00:00]} Nc6 {[%emt 0:00:00]} 3. Bb5 {[%emt 0:00:00]} Bc5 {[%emt 0:00:00]} 4. c3 {[%emt 0:02:52]} f5 {[%emt 0:00:00]} 5. Bxc6 {[%emt 0:07:40]} dxc6 {[%emt 0:07:07]} 6. Nxe5 {[%emt 0:03:43]} Bd6 {[%emt 0:20:24]} 7. Qh5+ {[%emt 0:08:12]} g6 {[%emt 0:00:08]} 8. Nxg6 {[%emt 0:00:05]} Nf6 {[%emt 0:00:23]} 9. Qh4 {[%emt 0:01:09]} Rg8 {[%emt 0:00:29]} 10. e5 {[%emt 0:00:11]} Rxg6 {[%emt 0:03:17]} 11. exf6 {[%emt 0:12:33]} Qd7 {[%emt 0:05:09]} 12. O-O {[%emt 0:07:04]} Qf7 {[%emt 0:00:17]} 13. d4 {[%emt 0:03:40]} Be6 {[%emt 0:01:44]} 14. f3 {[%emt 0:06:25]} O-O-O {[%emt 0:00:44]} 15. Bf4 {[%emt 0:01:14]} Rdg8 {[%emt 0:05:54]} 16. Rf2 {[%emt 0:04:40]} Bxf4 {[%emt 0:08:04]} 17. Qxf4 {[%emt 0:00:24]} Qxf6 {[%emt 0:00:34]} 18. Nd2 {[%emt 0:07:49]} h5 {[%emt 0:01:38]} 19. Nf1 {[%emt 0:05:59]} h4 {[%emt 0:02:38]} 20. h3 {[%emt 0:07:55]} R6g7 {[%emt 0:15:43]} 21. Re1 {[%emt 0:01:50]} Re7 {[%emt 0:01:07]} 22. Rfe2 {[%emt 0:01:26]} Rge8 {[%emt 0:01:35]} 23. b3 {[%emt 0:00:59]} Bd7 {[%emt 0:01:56]} 24. Rxe7 {[%emt 0:05:41]} Rxe7 {[%emt 0:00:08]} 25. Rxe7 {[%emt 0:00:06]} Qxe7 {[%emt 0:00:05]} 26. Ne3 {[%emt 0:00:58]} Qa3 {[%emt 0:00:42]} 27. Nxf5 {[%emt 0:00:38]} Qxa2 {[%emt 0:00:59]} 28. Ne7+ {[%emt 0:00:57]} Kd8 {[%emt 0:00:17]} 29. Qf6 {[%emt 0:01:04]} Ke8 {[%emt 0:02:09]} 30. Ng6 {[%emt 0:00:18]} Qa1+ {[%emt 0:00:21]} 31. Kh2 {[%emt 0:00:03]} Qa3 {[%emt 0:00:22]} 32. b4 {[%emt 0:00:05]} 1-0